{"text_format":"1","workbook":"xlsx","n_sheets":2,"sheets":["SISS","Masters"],"not_rendered":{"charts":0,"images":1,"macros":1,"external_links":0,"defined_names":3,"comments":0,"pivot_tables":0},"unopened":[],"bounds":{"document_bytes":16777216,"sheet_cells":100000,"rows_first":2000,"rows_last":500,"rows_between":2000,"halvings":0,"cell_chars":16384,"cell_head_chars":4096},"cells_cut":0,"cells_raw":0,"read":"whole","date_system":"1900"}

{"sheet":"SISS","index":0,"n_rows":315,"n_cols":23,"rows_kept":315,"cut":false,"hidden":false,"merged":[[308,19,308,24],[310,19,310,24],[314,2,314,23],[255,20,255,24],[290,20,290,24],[293,19,293,24],[270,19,270,24],[272,2,272,24],[261,20,261,24],[264,19,264,24],[266,16,266,24],[268,2,268,24],[147,20,147,24],[8,12,8,13],[109,20,109,24],[195,18,195,24],[222,20,222,24],[202,19,202,20],[202,12,202,13],[204,12,204,13],[191,20,191,24],[55,15,55,24],[29,20,29,24],[123,18,123,24],[206,18,206,24],[200,18,200,24],[107,13,107,14],[101,15,101,24],[111,1,111,25],[145,20,145,24],[125,7,125,8],[127,7,127,8],[129,7,129,8],[129,18,129,19],[127,18,127,19],[125,18,125,19],[131,1,131,24],[121,11,121,22],[51,6,51,7],[51,14,51,15],[51,20,51,21],[17,5,17,24],[14,6,14,24],[37,14,37,15],[37,6,37,7],[45,12,45,13],[45,20,45,21],[43,20,43,21],[43,12,43,13],[43,6,43,7],[41,6,41,7],[41,12,41,13],[41,20,41,21],[45,8,45,9],[98,9,98,24],[103,13,103,14],[105,13,105,14],[12,7,12,24],[19,16,19,24],[35,14,35,15],[35,6,35,7],[35,22,35,23],[21,16,21,20],[23,16,23,20],[15,12,15,19],[15,22,15,24],[15,4,15,10],[16,20,16,24],[16,4,16,16],[53,6,53,7],[67,17,67,24],[57,8,57,9],[59,8,59,9],[57,19,57,20],[59,19,59,20],[61,8,61,9],[64,17,64,24],[193,10,193,24],[157,1,157,24],[163,1,163,24],[212,1,212,24],[274,1,274,24],[251,20,251,24],[229,18,229,24],[202,6,202,7],[204,6,204,7],[240,9,240,12],[242,9,242,12],[244,9,244,12],[226,20,226,24],[224,18,224,24]]}
[]
[]
[null,"Survey on Indian Startup Sector-Questionnaire"]
[]
[null,null,null,null,null,null,null,null,null,null,null,null,"RESERVE BANK OF INDIA"]
[null,null,null,null,null,null,null,null,null,null,null,null,"DEPARTMENT OF STATISTICS AND INFORMATION MANAGEMENT"]
[null,null,null,null,null,null,null,null,null,null,null,null,"MUMBAI-400051"]
[null,null,null,null,null,null,null,null,null,null,null,null,"Survey on Indian Startup Sector-Questionnaire"]
[null,null,null,null,null,null,null,null,null,null,null,"Year "]
[]
[null,null,null,null,null,null,null,null,null,null,null,null,"A. General Information on the Startup"]
[]
[null,"1. Name of your Startup"]
[]
[null,"2. Address (optional):"]
[null,null,null,"State:","Select",null,null,null,null,null,null,"City:",null,null,null,null,null,null,null,null,null,"PIN:"]
[null,null,null,"Email:",null,null,null,null,null,null,null,null,null,null,null,null,null,null,null,"Contact no: "]
[null,null,null,null,"CIN (21 digits):"]
[]
[null,"3. Certificate Number as recognised by DIPP as startup(if any):"]
[]
[null,"4. Total number of founder(s) in your Startup"]
[]
[null,"5. Total number of female founder(s) in your Startup"]
[]
[null,"6. Number of the founder(s) in age intervals given below (write number inside the box as applicable)*"]
[]
[null,null,null,null,null,"a. Less than 20 ",null,null,null,"b. 20-25 ",null,null,null,"c. 25-30 ",null,null,null,"d. 30-40 ",null,null,null,null,"e. Above 40 "]
[]
[null,"7. Age of the Startup (in years)",null,null,null,null,null,null,null,null,null,null,null,null,null,null,null,null,null,null,"Select"]
[]
[null,null,null,null,null,"a. Less than one ",null,null,null,"b. 1-3 ",null,null,null,"c. 3-5 ",null,null,null,"d. 5-7 "]
[]
[null,"8. Number of founder(s) with qualification given below (write the number inside the box as applicable)"]
[]
[null,null,null,null,null,"a. High school ",null,null,null,null,null,null,null,"b. Bachelor degree ",null,null,null,null,null,null,null,"c. Master degree "]
[]
[null,null,null,null,null,"d. MBA/CA ",null,null,null,null,null,null,null,"e. Others "]
[]
[null,"9. Academic background of the founder(s) (write the number inside the box as applicable)"]
[]
[null,null,null,null,null,"a. Science ",null,null,null,null,null,"b. Arts ",null,null,null,null,null,null,null,"c. Commerce/Finance "]
[]
[null,null,null,null,null,"d. Engineering ",null,null,null,null,null,"e. Medicine ",null,null,null,null,null,null,null,"f. Marketing "]
[]
[null,null,null,null,null,null,null,"g. Information Technology ",null,null,null,"h. Law ",null,null,null,null,null,null,null,"i. Others "]
[]
[]
[]
[null,"10. Background of the founder(s) (write the number inside the box as applicable)"]
[]
[null,null,null,null,null,"a. Professional ",null,null,null,null,null,null,null,"b. Business Owner ",null,null,null,null,null,"c. Student "]
[]
[null,null,null,null,null,"i. Others "]
[]
[null,"11. Type of your startup",null,null,null,null,null,null,null,null,null,null,null,null,null,"Select"]
[]
[null,null,null,null,null,null,null,"a. Private Ltd. Company ",null,null,null,null,null,null,null,null,null,null,"b. Public Ltd. Company "]
[]
[null,null,null,null,null,null,"c. Partnership firm ",null,null,null,null,null,null,null,null,null,null,null,"d. Limited Liability Partnership "]
[]
[null,null,null,null,null,null,"e. Unregistered "]
[]
[null,"12. If registered in India,"]
[null,null,"mention the state in which your Startup has been registered",null,null,null,null,null,null,null,null,null,null,null,null,null,null,"Select"]
[]
[null,"13. If registered aboard,"]
[null,null,"mention the country in which your Startup has been registered",null,null,null,null,null,null,null,null,null,null,null,null,null,null,"Select"]
[]
[]
[null,null,null,null,null,null,null,null,null,null,null,null,"B. Description of the Startup"]
[]
[null,"14. Sector that best describes your Startup (you can tick more than one, in order of priority ,1 being top)"]
[]
[null,null,null," a. Agriculture",null,null,null,null,null,null,null,null," b. Social Commerce"]
[]
[null,null,null," c. Consumer Goods",null,null,null,null,null,null,null,null," d. Data & Analytics"]
[]
[null,null,null," e. Education",null,null,null,null,null,null,null,null," f. Media & Entertainment"]
[]
[null,null,null," g. Financial Services",null,null,null,null,null,null,null,null," h. Energy/renewable Energy"]
[]
[null,null,null," i. Transport&  Logistics",null,null,null,null,null,null,null,null," j. Sports & Recreation"]
[]
[null,null,null," k. Health",null,null,null,null,null,null,null,null," l. Enterprise &  Corporate"]
[]
[null,null,null," m. Social Enterprise",null,null,null,null,null,null,null,null," n. Food"]
[]
[null,null,null," o. Water supply",null,null,null,null,null,null,null,null," p. Manufacturing"]
[]
[null,null,null," q. Product Development",null,null,null,null,null,null,null,null," r. Hardware Development"]
[]
[null,null,null," s. Biotechnology",null,null,null,null,null,null,null,null," t.  Machine learning"]
[]
[null,null,null," u. IT Consulting/ Solution",null,null,null,null,null,null,null,null," v. Software Development"]
[]
[null,null,null," w. Travel & Tourism"]
[]
[null,null,"x. Others (please specify)"]
[]
[]
[null,"15. Which option will be more suitable for your product:",null,null,null,null,null,null,null,null,null,null,null,null,null,"Select"]
[]
[null,null,"a. Already exists in the market"]
[]
[null,null,"b. Improved version of an existing product"]
[]
[null,null,"c. New Innovative Product "]
[]
[null,"16. Whether your Startup has filed for patents",null,null,null,null,null,null,null,null,null,null,null,null,null,null,null,null,null,null,"Select"]
[]
[null,"17. Which of the following helped you to set up the Startup (you can tick more than one, in order of priority, \n       1 being top)"]
[]
[null,null,null,"a. Favourable economic conditions",null,null,null,null,null,null,null,null,null,null,"b. Ease of doing business"]
[]
[null,null,null,"c. Market/Industry demand",null,null,null,null,null,null,null,null,null,null,"d. Availability of talent"]
[]
[null,null,null,"e. Low barriers to entry",null,null,null,null,null,null,null,null,null,null,"f. Experience of team"]
[]
[null,null,false,"g. None of the above"]
[]
[null,null,"h. Other (Please Specify)"]
[]
[null,"18. Which stage is your Startup currently at",null,null,null,null,null,null,null,null,null,null,null,null,null,null,null,null,"Select"]
[]
[null,null,"a. Idea/Concept",null,null,null,null,null,null,null,"b. Beta /Prototype"]
[]
[null,null,"c. Early revenue        ",null,null,null,null,null,null,null,"d. Growing revenues"]
[]
[null,null,"e. Maturity",null,null,null,null,null,null,null,"f. Expanding to new market(s)"]
[]
[null,"19. Professional support accessed by your Startup (you can tick more than one, in order of priority, \n       1 being top)"]
[]
[null,null,null,"a. Mentors & Advisors",null,null,null,null,null,null,null,"b. Lawyers/Business Consultants"]
[]
[null,null,null,"c. Local Government   ",null,null,null,null,null,null,null,"d. Industry Connect"]
[]
[null,null,null,"e. Chartered Accountant/ Company Secretary"]
[]
[null,null,false,"f. None of the above"]
[]
[null,"20. Personal motivation for setting Startup (you can select more than one)"]
[]
[null,null,false,"a. Opportunity",null,null,null,null,null,false,"b. Social service",null,null,null,null,null,false,"c. Lack of other option"]
[]
[null,"21. Is your Startup under any incubator/accelerator/Investor/GoI?",null,null,null,null,null,null,null,null,null,null,null,null,null,null,null,null,null,null,"Select"]
[]
[null,"22. Is your Startup under any international incubator/accelerator/Investor",null,null,null,null,null,null,null,null,null,null,null,null,null,null,null,null,null,null,"Select"]
[]
[null,"23. Your target market (you can tick more than one, in order of priority, 1 being top)"]
[]
[null,null,null,"a. Rural India",null,null,null,null,null,null,null,"b. Semi-urban India"]
[]
[null,null,null,"c. Urban India",null,null,null,null,null,null,null,"d. Metropolitan India"]
[]
[null,null,null,"e. Outside India"]
[]
[null,"24. Which types of Customer targeted by your Startup? (you can tick more than one, in order of priority, \n       1 being top)"]
[]
[null,null,null,"a. B2B",null,null,null,null,"b. B2C"]
[]
[null,null,null,"c. B2B2C",null,null,null,null,"d. B2G "]
[]
[null,"25. What technology is your Startup making use of? (you can tick more than one, in order of priority, \n       1 being top)"]
[]
[null,null,null,"a. Big data & Analytic",null,null,null,null,null,null,null,null,null,null,"b. Machine learning"]
[]
[null,null,null,"c. IoT (Internet of Things)",null,null,null,null,null,null,null,null,null,null,"d. Online Aggregator"]
[]
[null,null,null,"e. AR (Augmented reality)/VR (virtual reality)"]
[]
[null,null,null,"f. Chatbot and Natural Language Processing (NLP)"]
[]
[null,null,null,"g. Online Marketing",null,null,null,null,null,null,null,null,null,false,"h. None of the above"]
[null,null,null,null,null,null,null,null,null,null,null,null,"C. Finance and Performance of the Startup"]
[null,"26. How your Startup is funded (you can tick more than one, in order of priority, 1 being top)"]
[]
[null,null,null,"a. Own funds",null,null,null,null,null,null,null,"b. Family & Friends"]
[]
[null,null,null,"c. Funding by NRIs",null,null,null,null,null,null,null,"d. Angel investor"]
[]
[null,null,null,"e. Crowd funding",null,null,null,null,null,null,null,"f. Private Equity/VC"]
[]
[null,null,null,"g. Banks",null,null,null,null,null,null,null,"h. Funded by SIDBI"]
[]
[null,null,null,"i. AIFs (through SEBI)",null,null,null,null,null,null,null,"j. NBFC"]
[]
[null,null,null,"k. NABARD",null,null,null,null,null,null,null,"l. Incubator Funding"]
[]
[null,null,null,"m. Accelerator Funding",null,null,null,null,null,null,null,"n. Others"]
[]
[null,"27. In case the Startup expected some financial concession from Government,",null,null,null,null,null,null,null,null,null,null,null,null,null,null,null,null,null,null,"Select"]
[null,null,"did it materialise?"]
[null,"Please mention the possible reason:"]
[]
[null,"28. Capital infused to your Startup so far (in Rupees)",null,null,null,null,null,null,null,null,null,null,null,null,null,null,null,null,"Select"]
[]
[]
[]
[]
[null,"29. International funding received by your Startup (in Rupees)",null,null,null,null,null,null,null,null,null,null,null,null,null,null,null,null,"Select"]
[]
[null,null,"a. < 1 Cr.",null,null,null,null,null,null,"b. 1 Cr. -3 Cr.",null,null,null,null,null,"c. 3 Cr.-10 Cr."]
[]
[null,null,"d. Above 10 Cr.",null,null,null,null,null,null,"e. None"]
[]
[null,"30. Working capital required for a period of one year (in Rupees)",null,null,null,null,null,null,null,null,null,null,null,null,null,null,null,null,"Select"]
[]
[]
[]
[]
[]
[null,"31. Institution from which you received loan easily (you can tick more than one, in order of priority, \n       1 being top)"]
[]
[null,null,null,"a. Public Sector Banks",null,null,null,null,null,null,null,null,null,null,"b. Private Sector Banks"]
[]
[null,null,null,"c. Non-Bank Financial Companies",null,null,null,null,null,null,null,null,null,null,"d. External Commercial Borrowing"]
[]
[null,null,null,"e. Others",null,null,null,null,null,null,null,null,null,false,"f. Not Applicable"]
[]
[]
[]
[null,"32. Your willingness to convert your loan to Equity",null,null,null,null,null,null,null,null,null,null,null,null,null,null,null,null,null,null,"Select"]
[]
[null,"33. Is your Startup generating revenue",null,null,null,null,null,null,null,null,null,null,null,null,null,null,null,null,"Select"]
[]
[null,"34. In which financial year of operation did your Startup started ",null,null,null,null,null,null,null,null,null,null,null,null,null,null,null,null,null,null,"Select"]
[null,null,"generating revenue? (turnaround time)"]
[]
[null,"35. Annual turnover of your Startup (in Rupees)",null,null,null,null,null,null,null,null,null,null,null,null,null,null,null,null,"Select"]
[]
[]
[]
[]
[]
[]
[]
[null,"36. Did your Startup make any profit in the last three years"]
[]
[]
[null,null,null,{"$f":"IF(M9=\"\",\"\",M9-3&\"-\"&M9-2)","v":""},null,null,null,null,null,"Select"]
[]
[null,null,null,{"$f":"IF(M9=\"\",\"\",M9-2&\"-\"&M9-1)","v":""},null,null,null,null,null,"Select"]
[]
[null,null,null,{"$f":"IF(M9=\"\",\"\",M9-1&\"-\"&M9)","v":""},null,null,null,null,null,"Select"]
[]
[]
[]
[null,null,null,null,null,null,null,null,null,null,null,null,"D. Employment in the Startup"]
[]
[]
[null,"37. Number of employees in your Startup in the first six months.",null,null,null,null,null,null,null,null,null,null,null,null,null,null,null,null,null,null,"Select"]
[null,null,"(on roll/on contract)"]
[]
[]
[null,"38. Number of employees in your startup now",null,null,null,null,null,null,null,null,null,null,null,null,null,null,null,null,null,null,"Select"]
[]
[]
[null,null,null,null,null,null,null,null,null,null,null,null,"E. Challenges faced by the Startup"]
[]
[]
[null,"39. Do you think filing registration for regular compliance",null,null,null,null,null,null,null,null,null,null,null,null,null,null,null,null,null,null,"Select"]
[null,null,"(GST/Tax/Employee PF Fund /RoC/Tax Filing etc) is a smooth process in India."]
[]
[null,"40. Do you think policies in India for Startups are helpful?",null,null,null,null,null,null,null,null,null,null,null,null,null,null,null,null,null,"Select"]
[]
[null,null,"If “Yes” which is/are the most beneficial policy/policies"]
[]
[]
[]
[null,null,"Please state/suggest which policies will help you the most"]
[]
[]
[]
[null,"41. Challenge(s) to scale up your business (you can tick more than one, in order of priority, \n       1 being top)"]
[]
[null,null,null,"a. Access to finance",null,null,null,null,null,null,null,null,null,null,null,null,"b. Accessing new market"]
[]
[null,null,null,"c. Lack of distribution channel",null,null,null,null,null,null,null,null,null,null,null,null,"d. Regulatory prescriptions"]
[]
[null,null,null,"e. Lack of skilled labour/ Technology/ Talent"]
[]
[null,null,null,"f. Process of approval from Nodal Agency"]
[]
[null,null,false,"g. None of the above"]
[]
[]
[null,null,null,null,null,null,null,null,null,null,null,null,"F. Future Plan of the Startup"]
[]
[]
[null,"42. If not already listed, do you plan to",null,null,null,null,null,null,null,null,null,null,null,null,null,null,null,null,null,null,"Select"]
[null,null,"list your Startup on the Indian Stock Exchange in the next five years?"]
[]
[null,"43. Does your Startup have an intention to exit?",null,null,null,null,null,null,null,null,null,null,null,null,null,null,null,null,null,"Select"]
[]
[null,null,"if yes, what are the issues or challenges that affect your Startup to exit"]
[null,null,"(you can select more than one, in order of priority, 1 being top)"]
[]
[null,null,null,"a. Market conditions",null,null,null,null,null,null,null,null,null,null,null,null,"b. Funding requirement"]
[]
[null,null,null,"c. General economic situation",null,null,null,null,null,null,null,null,null,null,null,null,"d. Government Policies"]
[]
[null,null,null,"e. Growing presence of foreign startups"]
[]
[null,null,null,"f. Need to continually innovate to keep ahead"]
[]
[null,null,null,"g. Other"]
[]
[null,"44. Does your Startup have an intention for seeking an acquisition?",null,null,null,null,null,null,null,null,null,null,null,null,null,null,null,null,null,"Select"]
[]
[null,"45. How many new employees are you planning to hire in the",null,null,null,null,null,null,null,null,null,null,null,null,null,null,null,null,null,"Select"]
[null,null,"next two to three years?"]
[]
[]
[null,null,"Disclaimer: Information received through this questionnaire will be used for RBI internal purpose only. The data furnished in the questionnaire will be kept confidential and only consolidated aggregate may be published by Reserve Bank of India."]

{"sheet":"Masters","index":1,"n_rows":263,"n_cols":11,"rows_kept":263,"cut":false,"hidden":true,"merged":[]}
[]
[null,"STATE_NAME",null,null,"COUNTRY_NAME",null,null,"Years",null,null,1]
[null,"Select",null,null,"Select",null,null,"Select",null,null,2]
[null,"ANDAMAN & NICOBAR",null,null,"AFGHANISTAN",null,null,"< 2009-2010",null,null,3]
[null,"ANDHRA PRADESH",null,null,"ALBANIA",null,null,"2009-2010",2010,null,4]
[null,"ARUNACHAL PRADESH",null,null,"ALGERIA",null,null,{"$f":"IF(I6=\"No revenue\",I6,IF(I6=\"\",\"\",I5&\"-\"&I6))","v":"2010-2011"},{"$f":"IF(OR(I5=SISS!$M$9,I5=\"\"),\"\",I5+1)","v":2011},null,5]
[null,"ASSAM",null,null,"AMERICAN SAMOA",null,null,{"$f":"IF(I7=\"No revenue\",I7,IF(I7=\"\",\"\",I6&\"-\"&I7))","v":"2011-2012"},{"$f":"IF(OR(I6=SISS!$M$9,I6=\"\"),\"\",I6+1)","v":2012},null,6]
[null,"BIHAR",null,null,"ANDORA",null,null,"2012-2013",{"$f":"IF(OR(I7=SISS!$M$9,I7=\"\"),\"\",I7+1)","v":2013},null,7]
[null,"CHANDIGARH",null,null,"ANGOLA",null,null,"2013-2014",{"$f":"IF(OR(I8=SISS!$M$9,I8=\"\"),\"\",I8+1)","v":2014},null,8]
[null,"CHHATTISGARH",null,null,"ANGUILLA",null,null,"2014-2015",{"$f":"IF(OR(I9=SISS!$M$9,I9=\"\"),\"\",I9+1)","v":2015},null,9]
[null,"DADRA&NAGAR HAVELI",null,null,"ANTIGUA AND BARBUDA",null,null,"2015-2016",{"$f":"IF(OR(I10=SISS!$M$9,I10=\"\"),\"\",I10+1)","v":2016},null,10]
[null,"DAMAN & DIU",null,null,"ARGENTINA",null,null,"2016-2017",{"$f":"IF(OR(I11=SISS!$M$9,I11=\"\"),\"\",I11+1)","v":2017},null,11]
[null,"DELHI",null,null,"ARMENIA",null,null,"2017-2018",{"$f":"IF(OR(I12=SISS!$M$9,I12=\"\"),\"\",I12+1)","v":2018},null,12]
[null,"GOA",null,null,"ARUBA",null,null,"2018-2019",{"$f":"IF(OR(I13=SISS!$M$9,I13=\"\"),\"\",I13+1)","v":2019},null,13]
[null,"GUJARAT",null,null,"ASIAN CLEARING UNION",null,null,"2019-2020",{"$f":"IF(OR(I14=SISS!$M$9,I14=\"\"),\"\",I14+1)","v":2020},null,14]
[null,"HARYANA",null,null,"AUSTRALIA",null,null,"2020-2021",{"$f":"IF(OR(I15=SISS!$M$9,I15=\"\"),\"\",I15+1)","v":2021},null,15]
[null,"HIMACHAL PRADESH",null,null,"AUSTRIA",null,null,"2021-2022",{"$f":"IF(OR(I16=SISS!$M$9,I16=\"\"),\"\",I16+1)","v":2022},null,16]
[null,"JAMMU & KASHMIR",null,null,"AZARBAIJAN",null,null,null,null,null,17]
[null,"JHARKHAND",null,null,"BAHAMA",null,null,null,null,null,18]
[null,"KARNATAKA",null,null,"BAHRAIN",null,null,null,null,null,19]
[null,"KERALA",null,null,"BANGLA DESH",null,null,null,null,null,20]
[null,"LAKSHADWEEP",null,null,"BARBADOS",null,null,null,null,null,21]
[null,"MADHYA PRADESH",null,null,"BELARUS",null,null,null,null,null,22]
[null,"MAHARASHTRA",null,null,"BELGIUM",null,null,null,null,null,23]
[null,"MANIPUR",null,null,"BELIZE"]
[null,"MEGHALAYA",null,null,"BENIN"]
[null,"MIZORAM",null,null,"BERMUDA"]
[null,"NAGALAND",null,null,"BHUTAN"]
[null,"ORISSA",null,null,"BOLIVIAN"]
[null,"PONDICHERRY",null,null,"BONAIRE, ST. EUST, SABA (BES) 3"]
[null,"PUNJAB",null,null,"BOSNIA-HERZEGOVINA"]
[null,"RAJASTHAN",null,null,"BOTSWANA"]
[null,"SIKKIM",null,null,"BOUVET ISLAND"]
[null,"TAMIL NADU",null,null,"BRAZIL"]
[null,"TELANGANA",null,null,"BRITISH INDIAN OCEAN TERRITORY"]
[null,"TRIPURA",null,null,"BRUNEI"]
[null,"UTTAR PRADESH",null,null,"BULGARIA"]
[null,"UTTARANCHAL",null,null,"BURKINA FASO"]
[null,"WEST BENGAL",null,null,"BURUNDI"]
[null,null,null,null,"CAMEROON REPUBLIC"]
[null,null,null,null,"CANADA"]
[null,null,null,null,"CANARY ISLANDS"]
[null,null,null,null,"CAPE VERDE"]
[null,null,null,null,"CAYMAN ISLANDS"]
[null,null,null,null,"CENTRAL AFRICAN REPUBLIC"]
[null,null,null,null,"CHAD"]
[null,null,null,null,"CHILE"]
[null,null,null,null,"CHINA"]
[null,null,null,null,"CHRISTMAS ISLAND"]
[null,null,null,null,"COCOS (KEELING) ISLANDS"]
[null,null,null,null,"COLOMBIA"]
[null,null,null,null,"COMBODIA"]
[null,null,null,null,"COMOROS"]
[null,null,null,null,"CONGO"]
[null,null,null,null,"CONGO, DEM. REP. OF"]
[null,null,null,null,"COOK ISLANDS"]
[null,null,null,null,"COSTA RICA"]
[null,null,null,null,"COTE D'IVOIRE"]
[null,null,null,null,"CROATIA"]
[null,null,null,null,"CUBA"]
[null,null,null,null,"CURACAO 3"]
[null,null,null,null,"CYPRUS"]
[null,null,null,null,"CZECH REPUBLIC"]
[null,null,null,null,"DENMARK"]
[null,null,null,null,"DJIBOUTI"]
[null,null,null,null,"DOMINICA"]
[null,null,null,null,"DOMINICAN REPUBLIC"]
[null,null,null,null,"EAST TIMOR"]
[null,null,null,null,"ECUADOR"]
[null,null,null,null,"EGYPT"]
[null,null,null,null,"EL SALVADOR"]
[null,null,null,null,"EQUATORIAL GUINEA"]
[null,null,null,null,"ERITREA"]
[null,null,null,null,"ESTONIA"]
[null,null,null,null,"ETHIOPIA"]
[null,null,null,null,"EUROPEAN MONETARY SYSTEM"]
[null,null,null,null,"EUROPEAN UNION"]
[null,null,null,null,"FALKLAND ISLANDS"]
[null,null,null,null,"FAROE ISLANDS"]
[null,null,null,null,"FIJI"]
[null,null,null,null,"FINLAND"]
[null,null,null,null,"FRANCE"]
[null,null,null,null,"FRENCH GUIANA"]
[null,null,null,null,"FRENCH POLYNESIA"]
[null,null,null,null,"FRENCH SOUTHERN TERRITORIES"]
[null,null,null,null,"GABON"]
[null,null,null,null,"GAMBIA"]
[null,null,null,null,"GEORGIA"]
[null,null,null,null,"GERMANY"]
[null,null,null,null,"GHANA"]
[null,null,null,null,"GIBRALTAR"]
[null,null,null,null,"GREECE"]
[null,null,null,null,"GREENLAND"]
[null,null,null,null,"GRENADA"]
[null,null,null,null,"GUADELOUPE"]
[null,null,null,null,"GUAM"]
[null,null,null,null,"GUATEMALA"]
[null,null,null,null,"GUERNSEY"]
[null,null,null,null,"GUINEA"]
[null,null,null,null,"GUINEA-BISSAU"]
[null,null,null,null,"GUYANA"]
[null,null,null,null,"HAITI"]
[null,null,null,null,"HEARD ISLAND AND MCDONALD ISLANDS"]
[null,null,null,null,"HONDURAS"]
[null,null,null,null,"HONG KONG"]
[null,null,null,null,"HUNGARY"]
[null,null,null,null,"ICELAND"]
[null,null,null,null,"INDONESIA"]
[null,null,null,null,"INTENATIONAL ORGANISATION"]
[null,null,null,null,"IRAN"]
[null,null,null,null,"IRAQ"]
[null,null,null,null,"IRELAND"]
[null,null,null,null,"ISLE OF MAN"]
[null,null,null,null,"ISRAEL"]
[null,null,null,null,"ITALY"]
[null,null,null,null,"JAMAICA"]
[null,null,null,null,"JAPAN"]
[null,null,null,null,"JERSEY"]
[null,null,null,null,"JORDAN"]
[null,null,null,null,"KAZAKSTAN"]
[null,null,null,null,"KENYA"]
[null,null,null,null,"KIRIBATI"]
[null,null,null,null,"KOREA, DEMOCRATIC PEOPLE'S REPUBLIC OF"]
[null,null,null,null,"KOREA, REPUBLIC OF"]
[null,null,null,null,"KOSOVO"]
[null,null,null,null,"KUWAIT"]
[null,null,null,null,"KYRGYZSTAN"]
[null,null,null,null,"LAOS"]
[null,null,null,null,"LATIN AMERICA"]
[null,null,null,null,"LATVIA"]
[null,null,null,null,"LEBANON"]
[null,null,null,null,"LESOTHO"]
[null,null,null,null,"LIBERIA"]
[null,null,null,null,"LIBYA"]
[null,null,null,null,"LIECHTENSTEIN"]
[null,null,null,null,"LITHUANIA"]
[null,null,null,null,"LUXEMBOURG"]
[null,null,null,null,"MACAU"]
[null,null,null,null,"MACEDONIA"]
[null,null,null,null,"MADAGASCAR"]
[null,null,null,null,"MALAWI"]
[null,null,null,null,"MALAYSIA"]
[null,null,null,null,"MALDIVES"]
[null,null,null,null,"MALI"]
[null,null,null,null,"MALTA"]
[null,null,null,null,"MARSHALL ISLANDS"]
[null,null,null,null,"MARTINIQUE"]
[null,null,null,null,"MAURITANIA"]
[null,null,null,null,"MAURITIUS"]
[null,null,null,null,"MAYOTTE"]
[null,null,null,null,"MEXICO"]
[null,null,null,null,"MICRONESIA, FEDERATED STATES OF"]
[null,null,null,null,"MOLDOVA"]
[null,null,null,null,"MONACO"]
[null,null,null,null,"MONGOLIA"]
[null,null,null,null,"MONTENEGRO, REPUBLIC OF"]
[null,null,null,null,"MONTSERRAT"]
[null,null,null,null,"MOROCCO"]
[null,null,null,null,"MOZAMBIQUE"]
[null,null,null,null,"MYANMAR"]
[null,null,null,null,"NAMIBIA"]
[null,null,null,null,"NAURU"]
[null,null,null,null,"NEPAL"]
[null,null,null,null,"NETHERLANDS"]
[null,null,null,null,"NETHERLANDS ANTILLES"]
[null,null,null,null,"NEW CALEDONIA"]
[null,null,null,null,"NEW ZEALAND"]
[null,null,null,null,"NICARAGUA"]
[null,null,null,null,"NIGER"]
[null,null,null,null,"NIGERIA"]
[null,null,null,null,"NIUE"]
[null,null,null,null,"NO SPECIFIC COUNTRY"]
[null,null,null,null,"NORFOLK ISLAND"]
[null,null,null,null,"NORTHERN MARIANA ISLANDS"]
[null,null,null,null,"NORWAY"]
[null,null,null,null,"OFFSHORE UNIT (INDIA)"]
[null,null,null,null,"OMAN"]
[null,null,null,null,"OTHER COUNTRIES"]
[null,null,null,null,"OTHER EAST ASIAN COUNTRIES"]
[null,null,null,null,"OTHER EUROPEAN COUNTRIES"]
[null,null,null,null,"PAKISTAN"]
[null,null,null,null,"PALAU"]
[null,null,null,null,"PANAMA"]
[null,null,null,null,"PAPUA NEW GUINEA"]
[null,null,null,null,"PARAGUAY"]
[null,null,null,null,"PERU"]
[null,null,null,null,"PHILIPPINES"]
[null,null,null,null,"PITCAIRN"]
[null,null,null,null,"POLAND"]
[null,null,null,null,"PORTUGAL"]
[null,null,null,null,"PUERTO RICO"]
[null,null,null,null,"QATAR"]
[null,null,null,null,"RÉUNION"]
[null,null,null,null,"ROMANIA"]
[null,null,null,null,"RUSSIAN FEDERATION"]
[null,null,null,null,"RWANDA"]
[null,null,null,null,"SAN MARINO"]
[null,null,null,null,"SAN TOME AND PRINCIPE"]
[null,null,null,null,"SAUDI ARABIA"]
[null,null,null,null,"SENEGAL"]
[null,null,null,null,"SERBIA, REPUBLIC OF"]
[null,null,null,null,"SEYCHELLES"]
[null,null,null,null,"SIERRA LEONE"]
[null,null,null,null,"SINGAPORE"]
[null,null,null,null,"SLOVAKIA"]
[null,null,null,null,"SLOVENIA"]
[null,null,null,null,"SOLOMON ISLANDS"]
[null,null,null,null,"SOMALIA"]
[null,null,null,null,"SOUTH AFRICA"]
[null,null,null,null,"SOUTH ASIA"]
[null,null,null,null,"SOUTH GEORGIA AND SANDWICH ISLANDS"]
[null,null,null,null,"SPAIN"]
[null,null,null,null,"SRI LANKA"]
[null,null,null,null,"ST. HELENA"]
[null,null,null,null,"ST. KITTS AND NEVIS"]
[null,null,null,null,"ST. LUCIA"]
[null,null,null,null,"ST. MAARTEN 3"]
[null,null,null,null,"ST. PIERRE AND MIQUELON"]
[null,null,null,null,"ST. VINCENT & GRENADINES"]
[null,null,null,null,"SUDAN"]
[null,null,null,null,"SURINAME"]
[null,null,null,null,"SWAZILAND"]
[null,null,null,null,"SWEDEN"]
[null,null,null,null,"SWITZERLAND"]
[null,null,null,null,"SYRIA"]
[null,null,null,null,"TAIWAN"]
[null,null,null,null,"TAJIKSTAN"]
[null,null,null,null,"TANZANIA"]
[null,null,null,null,"THAILAND"]
[null,null,null,null,"TIMOR-LESTE"]
[null,null,null,null,"TOGO REPUBLIC"]
[null,null,null,null,"TOKELAU"]
[null,null,null,null,"TONGA"]
[null,null,null,null,"TRINIDAD & TOBAGO"]
[null,null,null,null,"TUNISIA"]
[null,null,null,null,"TURKEY"]
[null,null,null,null,"TURKMENISTAN"]
[null,null,null,null,"TURKS AND CAICOS ISLANDS"]
[null,null,null,null,"TUVALU"]
[null,null,null,null,"UGANDA"]
[null,null,null,null,"UKRAINE"]
[null,null,null,null,"UNITED ARAB EMIRATES"]
[null,null,null,null,"UNITED KINGDOM"]
[null,null,null,null,"UNITED STATES OF AMERICA"]
[null,null,null,null,"URUGUAY"]
[null,null,null,null,"US PACIFIC ISLANDS"]
[null,null,null,null,"UZBEKISTAN"]
[null,null,null,null,"VANUATU"]
[null,null,null,null,"VATICAN  CITY STATE"]
[null,null,null,null,"VENEZUELA"]
[null,null,null,null,"VIETNAM"]
[null,null,null,null,"VIRGIN ISLANDS, BRITISH"]
[null,null,null,null,"VIRGIN ISLANDS, U.S."]
[null,null,null,null,"WALLIS AND FUTUNA ISLANDS"]
[null,null,null,null,"WEST ASIA"]
[null,null,null,null,"WEST BANK AND GAZA STRIP"]
[null,null,null,null,"WESTERN SAHARA"]
[null,null,null,null,"WESTERN SAMOA"]
[null,null,null,null,"YEMEN"]
[null,null,null,null,"YUGOSLAVIAN"]
[null,null,null,null,"ZAIRE"]
[null,null,null,null,"ZAMBIA"]
[null,null,null,null,"ZIMBABWE"]